fUST/lending_fUST_20251008
["ID","MTS","AMOUNT","RATE_DAILY","PERIOD"]
[389967502,1759912247976,-151.0,0.00021369,7]
[389967503,1759912248014,-152.814924,0.00021369,7]
[389967504,1759912248024,-500.0,0.00021369,2]
[389967505,1759912248033,-1109.486862,0.00021369,7]
[389967506,1759912248042,-1109.486862,0.00021369,7]
[389967507,1759912248051,-1109.486862,0.00021369,7]
[389967508,1759912248060,-500.0,0.00021369,2]
[389967509,1759912248070,-1109.486862,0.00021369,7]
[389967510,1759912248079,-4004.14,0.00021369,2]
[389967511,1759912248088,-1109.486862,0.00021369,7]
[389967512,1759912248097,-500.0,0.00021369,2]
[389967513,1759912248107,-1109.486862,0.00021369,7]
[389967514,1759912248116,-500.0,0.00021369,2]
[389967515,1759912248126,-1109.486862,0.00021369,7]
[389967516,1759912248135,-1109.486862,0.00021369,7]
[389967517,1759912248145,-1109.486862,0.00021369,7]
[389967518,1759912248155,-1109.486862,0.00021369,7]
[389967519,1759912248164,-500.0,0.00021369,2]
[389967520,1759912248174,-1109.486862,0.00021369,7]
[389967521,1759912248184,-1109.486862,0.00021369,7]
[389967522,1759912248194,-500.0,0.00021369,2]
[389967523,1759912248204,-721.93,0.00021369,2]
[389967524,1759912248213,-481.17013988,0.00021369,2]
[389967525,1759912248223,-1686.01,0.00021369,2]
[389967526,1759912248233,-26215.14,0.00021369,2]
[389967527,1759912248243,-10541.41,0.00021369,2]
[389967528,1759912248253,-461.60812861,0.00021369,2]
[389967529,1759912248263,-500.0,0.00021369,2]
[389967530,1759912248272,-151.0,0.00021369,2]
[389967531,1759912248282,-874.21,0.00021369,2]
[389967532,1759912248292,-151.56421726,0.00021369,2]
[389967533,1759912248302,-151.0,0.00021369,7]
[389967534,1759912248312,-500.0,0.00021369,2]
[389967535,1759912248322,-151.0,0.00021369,7]
[389967536,1759912248332,-500.0,0.00021369,2]
[389967537,1759912248342,-844.63,0.00021369,2]
[389967538,1759912248352,-151.0,0.00021369,7]
[389967539,1759912248362,-500.0,0.00021369,2]
[389967540,1759912248371,-500.0,0.00021369,2]
[389967541,1759912248381,-409.906574,0.00021369,7]
[389967542,1759912248391,-151.0,0.00021369,2]
[389967543,1759912248400,-409.906574,0.00021369,7]
[389967544,1759912248410,-500.0,0.00021369,2]
[389967545,1759912248419,-409.906574,0.00021369,7]
[389967546,1759912248429,-409.906574,0.00021369,7]
[389967547,1759912248439,-409.906574,0.00021369,7]
[389967548,1759912248450,-871.6,0.00021369,2]
[389967549,1759912248459,-409.906574,0.00021369,7]
[389967550,1759912248469,-151.0,0.00021369,7]
[389967551,1759912248479,-151.0,0.00021369,7]
[389967552,1759912248490,-151.0,0.00021369,7]
[389967553,1759912248499,-409.906574,0.00021369,7]
[389967554,1759912248509,-409.906574,0.00021369,7]
[389967555,1759912248518,-500.0,0.00021369,2]
[389967556,1759912248528,-409.906574,0.00021369,7]
[389967557,1759912248538,-151.0,0.00021369,7]
[389967558,1759912248548,-500.0,0.00021369,2]
[389967559,1759912248557,-151.0,0.00021369,7]
[389967560,1759912248567,-151.0,0.00021369,7]
[389967561,1759912248577,-409.906574,0.00021369,7]
[389967562,1759912248587,-336.295341,0.00021369,7]
[389967563,1759912248596,-500.25376829,0.00021369,2]
[389967564,1759912248606,-336.295341,0.00021369,7]
[389967565,1759912248616,-409.906574,0.00021369,7]
[389967566,1759912248626,-336.295341,0.00021369,7]
[389967567,1759912248636,-409.906574,0.00021369,7]
[389967568,1759912248645,-151.0,0.00021369,7]
[389967569,1759912248655,-151.0,0.00021369,7]
[389967570,1759912248664,-336.295341,0.00021369,7]
[389967571,1759912248673,-500.0,0.00021369,2]
[389967572,1759912248684,-235.838499,0.00021369,7]
[389967573,1759912248693,-336.295341,0.00021369,7]
[389967574,1759912248702,-151.0,0.00021369,7]
[389967575,1759912248711,-336.295341,0.00021369,7]
[389967576,1759912248721,-4292.97,0.00021369,2]
[389967577,1759912248730,-151.0,0.00021369,7]
[389967578,1759912248740,-151.0,0.00021369,7]
[389967579,1759912248750,-1755.237102,0.00021369,7]
[389967580,1759912248759,-336.295341,0.00021369,7]
[389967581,1759912248771,-500.0,0.00021369,2]
[389967582,1759912248783,-1755.237102,0.00021369,7]
[389967583,1759912248792,-500.0,0.00021369,2]
[389967584,1759912248802,-336.295341,0.00021369,7]
[389967585,1759912248811,-1755.237102,0.00021369,7]
[389967586,1759912248822,-12060.56,0.00021369,2]
[389967587,1759912248831,-2427.72,0.00021369,2]
[389967588,1759912248840,-336.295341,0.00021369,7]
[389967589,1759912248850,-151.0,0.00021369,7]
[389967590,1759912248862,-151.0,0.00021369,7]
[389967591,1759912248871,-500.0,0.00021369,2]
[389967592,1759912248881,-2550.31,0.00021369,2]
[389967593,1759912248890,-1755.237102,0.00021369,7]
[389967594,1759912248900,-151.0,0.00021369,7]
[389967595,1759912248909,-336.295341,0.00021369,7]
[389967596,1759912248918,-1755.237102,0.00021369,7]
[389967597,1759912248927,-336.295341,0.00021369,7]
[389967598,1759912248936,-1755.237102,0.00021369,7]
[389967599,1759912248946,-336.295341,0.00021369,7]
[389967600,1759912248955,-2788.13,0.00021369,2]
[389967601,1759912248964,-2049.27,0.00021369,2]
[389967602,1759912248974,-1755.237102,0.00021369,7]
[389967603,1759912248984,-1755.237102,0.00021369,7]
[389967604,1759912248993,-500.0,0.00021369,2]
[389967605,1759912249003,-1755.237102,0.00021369,7]
[389967606,1759912249015,-500.0,0.00021369,2]
[389967607,1759912249028,-1642.29,0.00021369,2]
[389967608,1759912249037,-1755.237102,0.00021369,7]
[389967609,1759912249047,-1755.237102,0.00021369,7]
[389967610,1759912249057,-1755.237102,0.00021369,7]
[389967611,1759912249066,-500.0,0.00021369,2]
[389967612,1759912249076,-270.53127,0.00021369,7]
[389967613,1759912249086,-270.53127,0.00021369,7]
[389967614,1759912249095,-500.0,0.00021369,2]
[389967615,1759912249104,-501.28325613,0.00021369,2]
[389967616,1759912249114,-270.53127,0.00021369,7]
[389967617,1759912249123,-151.0,0.00021369,7]
[389967618,1759912249133,-151.907832,0.00021369,7]
[389967619,1759912249143,-270.53127,0.00021369,7]
[389967620,1759912249152,-270.53127,0.00021369,7]
[389967621,1759912249162,-270.53127,0.00021369,7]
[389967622,1759912249171,-270.53127,0.00021369,7]
[389967623,1759912249181,-270.53127,0.00021369,7]
[389967624,1759912249191,-270.53127,0.00021369,7]
[389967625,1759912249201,-636.69,0.00021369,2]
[389967626,1759912249211,-270.53127,0.00021369,7]
[389967627,1759912249220,-270.53127,0.00021369,7]
[389967628,1759912249229,-500.0,0.00021369,2]
[389967629,1759912249239,-646.23,0.00021369,2]
[389967630,1759912249248,-270.53127,0.00021369,7]
[389967631,1759912249259,-3844.87,0.00021369,2]
[389967632,1759912249268,-2865.24,0.00021369,2]
[389967633,1759912249283,-740.16,0.00021369,2]
[389967634,1759912249293,-500.0,0.00021369,2]
[389967635,1759912249302,-583.02,0.00021369,2]
[389967636,1759912249312,-3282.53,0.00021369,2]
[389967637,1759912249321,-5116.04,0.00021369,2]
[389967638,1759912249331,-3038.12,0.00021369,2]
[389967639,1759912249340,-502.5113985,0.00021369,2]
[389967640,1759912249350,-500.0,0.00021369,2]
[389967641,1759912249359,-2246.91,0.00021369,2]
[389967642,1759912249369,-9610.7,0.00021369,2]
[389967643,1759912249380,-500.0,0.00021369,2]
[389967644,1759912249390,-2246.91,0.00021369,2]
[389967645,1759912249399,-500.0,0.00021369,2]
[389967646,1759912249409,-2246.91,0.00021369,2]
[389967647,1759912249419,-500.64854554,0.00021369,2]
[389967648,1759912249429,-2246.91,0.00021369,2]
[389967649,1759912249439,-500.0,0.00021369,2]
[389967650,1759912249448,-2246.91,0.00021369,2]
[389967651,1759912249458,-2246.91,0.00021369,2]
[389967652,1759912249467,-2246.91,0.00021369,2]
[389967653,1759912249477,-500.0,0.00021369,2]
[389967654,1759912249487,-2246.91,0.00021369,2]
[389967655,1759912249496,-2246.91,0.00021369,2]
[389967656,1759912249506,-2246.91,0.00021369,2]
[389967657,1759912249516,-500.0,0.00021369,2]
[389967658,1759912249526,-2246.91,0.00021369,2]
[389967659,1759912249536,-2246.91,0.00021369,2]
[389967660,1759912249546,-2246.91,0.00021369,2]
[389967661,1759912249555,-2246.91,0.00021369,2]
[389967662,1759912249566,-500.0,0.00021369,2]
[389967663,1759912249576,-2246.91,0.00021369,2]
[389967664,1759912249585,-2246.91,0.00021369,2]
[389967665,1759912249595,-2246.91,0.00021369,2]
[389967666,1759912249604,-1432.42,0.00021369,2]
[389967667,1759912249614,-500.0,0.00021369,2]
[389967668,1759912249623,-2246.91,0.00021369,2]
[389967669,1759912249632,-4400.84,0.00021369,2]
[389967670,1759912249642,-2246.91,0.00021369,2]
[389967671,1759912249652,-2246.91,0.00021369,2]
[389967672,1759912249661,-500.0,0.00021369,2]
[389967673,1759912249670,-2246.91,0.00021369,2]
[389967674,1759912249679,-1486.0,0.00021369,2]
[389967675,1759912249689,-2246.91,0.00021369,2]
[389967676,1759912249698,-569.81,0.00021369,2]
[389967677,1759912249707,-10992.91,0.00021369,2]
[389967678,1759912249717,-2246.91,0.00021369,2]
[389967679,1759912249726,-500.0,0.00021369,2]
[389967680,1759912249736,-2247.14532995,0.00021369,2]
[389967681,1759912249746,-769.69,0.00021369,2]
[389967682,1759912249757,-2852.31,0.00021369,2]
[389967683,1759912249766,-500.0,0.00021369,2]
[389967684,1759912249775,-3956.66,0.00021369,2]
[389967685,1759912249790,-8497.12,0.00021369,2]
[389967686,1759912249800,-500.0,0.00021369,2]
[389967687,1759912249809,-151.0,0.00021369,7]
[389967688,1759912249819,-595.78,0.00021369,2]
[389967689,1759912249829,-151.957816,0.00021369,7]
[389967690,1759912249839,-836.0,0.00021369,2]
[389967691,1759912249848,-2433.05,0.00021369,2]
[389967692,1759912249861,-199.513076,0.00021369,7]
[389967693,1759912249870,-199.513076,0.00021369,7]
[389967694,1759912249880,-199.513076,0.00021369,7]
[389967695,1759912249889,-1952.74,0.00021369,2]
[389967696,1759912249900,-794.29,0.00021369,2]
[389967697,1759912249909,-199.513076,0.00021369,7]
[389967698,1759912249919,-199.513076,0.00021369,7]
[389967699,1759912249928,-199.513076,0.00021369,7]
[389967700,1759912249937,-199.513076,0.00021369,7]
[389967701,1759912249952,-199.513076,0.00021369,7]
[389967702,1759912249962,-199.513076,0.00021369,7]
[389967703,1759912249971,-151.0,0.00021369,7]
[389967704,1759912249980,-151.0,0.00021369,7]
[389967705,1759912249990,-199.513076,0.00021369,7]
[389967706,1759912250000,-151.0,0.00021369,7]
[389967707,1759912250010,-199.513076,0.00021369,7]
[389967708,1759912250020,-1209.0,0.00021369,2]
[389967709,1759912250030,-3051.87,0.00021369,2]
[389967710,1759912250040,-199.513076,0.00021369,7]
[389967711,1759912250050,-151.0,0.00021369,7]
[389967712,1759912250059,-151.0,0.00021369,7]
[389967713,1759912250069,-500.0,0.00021369,2]
[389967714,1759912250078,-913.55,0.00021369,2]
[389967715,1759912250087,-151.0,0.00021369,7]
[389967716,1759912250099,-687.9,0.00021369,2]
[389967717,1759912250109,-500.0,0.00021369,2]
[389967718,1759912250119,-151.847987,0.00021369,7]
[389967719,1759912250130,-500.0,0.00021369,2]
[389967720,1759912250140,-500.38682808,0.00021369,2]
[389967721,1759912250150,-151.0,0.00021369,7]
[389967722,1759912250159,-26636.75,0.00021369,2]
[389967723,1759912250169,-151.0,0.00021369,7]
[389967724,1759912250178,-1493.51,0.00021369,2]
[389967725,1759912250188,-179.816372,0.00021369,7]
[389967726,1759912250198,-500.0,0.00021369,2]
[389967727,1759912250208,-1493.51,0.00021369,2]
[389967728,1759912250217,-1493.51,0.00021369,2]
[389967729,1759912250227,-509.39896462,0.00021369,2]
[389967730,1759912250236,-1493.51,0.00021369,2]
[389967731,1759912250246,-152.265948,0.00021369,7]
[389967732,1759912250256,-500.0,0.00021369,2]
[389967733,1759912250265,-1493.51,0.00021369,2]
[389967734,1759912250275,-1493.51,0.00021369,2]
[389967735,1759912250285,-1493.51,0.00021369,2]
[389967736,1759912250295,-1493.51,0.00021369,2]
[389967737,1759912250304,-1493.51,0.00021369,2]
[389967738,1759912250314,-1917.81,0.00021369,2]
[389967739,1759912250328,-1493.51,0.00021369,2]
[389967740,1759912250338,-1493.51,0.00021369,2]
[389967741,1759912250347,-1493.51,0.00021369,2]
[389967742,1759912250357,-500.0,0.00021369,2]
[389967743,1759912250366,-1493.51,0.00021369,2]
[389967744,1759912250376,-1493.51,0.00021369,2]
[389967745,1759912250386,-151.0,0.00021369,7]
[389967746,1759912250395,-1493.51,0.00021369,2]
[389967747,1759912250453,-151.0,0.00021369,7]
[389967748,1759912250462,-1493.51,0.00021369,2]
[389967749,1759912250471,-1493.51,0.00021369,2]
[389967750,1759912250481,-856.5,0.00021369,2]
[389967751,1759912250490,-151.0,0.00021369,7]
[389967752,1759912250499,-1493.51,0.00021369,2]
[389967753,1759912250509,-1493.51,0.00021369,2]
[389967754,1759912250518,-500.0,0.00021369,2]
[389967755,1759912250528,-1493.51,0.00021369,2]
[389967756,1759912250537,-1493.51,0.00021369,2]
[389967757,1759912250547,-1493.51,0.00021369,2]
[389967758,1759912250556,-500.0,0.00021369,2]
[389967759,1759912250566,-151.0,0.00021369,7]
[389967760,1759912250575,-1493.51,0.00021369,2]
[389967761,1759912250585,-151.0,0.00021369,7]
[389967762,1759912250594,-1493.55618366,0.00021369,2]
[389967763,1759912250603,-153.611137,0.00021369,7]
[389967764,1759912250612,-500.0,0.00021369,2]
[389967765,1759912250621,-879.66,0.00021369,2]
[389967766,1759912250631,-500.0,0.00021369,2]
[389967767,1759912250640,-151.0,0.00021369,7]
[389967768,1759912250650,-151.0,0.00021369,7]
[389967769,1759912250658,-151.0,0.00021369,7]
[389967770,1759912250668,-500.0,0.00021369,2]
[389967771,1759912250677,-352.734217,0.00021369,7]
[389967772,1759912250686,-151.0,0.00021369,7]
[389967773,1759912250695,-352.734217,0.00021369,7]
[389967774,1759912250705,-1559.72,0.00021369,2]
[389967775,1759912250714,-151.0,0.00021369,7]
[389967776,1759912250723,-352.734217,0.00021369,7]
[389967777,1759912250732,-151.0,0.00021369,7]
[389967778,1759912250742,-810.22,0.00021369,2]
[389967779,1759912250751,-500.0,0.00021369,2]
[389967780,1759912250760,-1991.495369,0.00021369,7]
[389967781,1759912250770,-500.0,0.00021369,2]
[389967782,1759912250785,-352.734217,0.00021369,7]
[389967783,1759912250795,-1991.495369,0.00021369,7]
[389967784,1759912250804,-352.734217,0.00021369,7]
[389967785,1759912250813,-1991.495369,0.00021369,7]
[389967786,1759912250822,-304.66882393,0.00021369,2]
[389967787,1759912250832,-352.734217,0.00021369,7]
[389967788,1759912250842,-483.68371775,0.00021369,2]
[389967789,1759912250851,-352.734217,0.00021369,7]
[389967790,1759912250861,-1991.495369,0.00021369,7]
[389967791,1759912250871,-500.0,0.00021369,2]
[389967792,1759912250880,-352.734217,0.00021369,7]
[389967793,1759912250889,-1991.495369,0.00021369,7]
[389967794,1759912250899,-352.734217,0.00021369,7]
[389967795,1759912250908,-1991.495369,0.00021369,7]
[389967796,1759912250917,-1665.3,0.00021369,2]
[389967797,1759912250926,-352.734217,0.00021369,7]
[389967798,1759912250935,-174.202717,0.00021369,7]
[389967799,1759912250944,-352.734217,0.00021369,7]
[389967800,1759912250954,-1665.3,0.00021369,2]
[389967801,1759912250964,-174.202717,0.00021369,7]
[389967802,1759912250973,-1665.3,0.00021369,2]
[389967803,1759912250982,-352.734217,0.00021369,7]
[389967804,1759912250992,-1991.495369,0.00021369,7]
[389967805,1759912251001,-174.202717,0.00021369,7]
[389967806,1759912251011,-1665.3,0.00021369,2]
[389967807,1759912251020,-734.0,0.00021369,2]
[389967808,1759912251029,-1991.495369,0.00021369,7]
[389967809,1759912251038,-1665.3,0.00021369,2]
[389967810,1759912251047,-1787.17,0.00021369,2]
[389967811,1759912251056,-745.87,0.00021369,2]
[389967812,1759912251066,-1991.495369,0.00021369,7]
[389967813,1759912251074,-1665.3,0.00021369,2]
[389967814,1759912251083,-1665.3,0.00021369,2]
[389967815,1759912251092,-500.0,0.00021369,2]
[389967816,1759912251101,-174.202717,0.00021369,7]
[389967817,1759912251110,-1665.3,0.00021369,2]
[389967818,1759912251119,-174.202717,0.00021369,7]
[389967819,1759912251128,-1665.3,0.00021369,2]
[389967820,1759912251138,-174.202717,0.00021369,7]
[389967821,1759912251147,-1991.495369,0.00021369,7]
[389967822,1759912251156,-1665.3,0.00021369,2]
[389967823,1759912251166,-1991.495369,0.00021369,7]
[389967824,1759912251176,-1665.3,0.00021369,2]
[389967825,1759912251185,-1665.3,0.00021369,2]
[389967826,1759912251194,-1991.495369,0.00021369,7]
[389967827,1759912251203,-174.202717,0.00021369,7]
[389967828,1759912251212,-1665.3,0.00021369,2]
[389967829,1759912251221,-909.49,0.00021369,2]
[389967830,1759912251230,-1665.3,0.00021369,2]
[389967831,1759912251240,-174.202717,0.00021369,7]
[389967832,1759912251249,-1665.3,0.00021369,2]
[389967833,1759912251257,-174.202717,0.00021369,7]
[389967834,1759912251266,-1665.3,0.00021369,2]
[389967835,1759912251276,-500.0,0.00021369,2]
[389967836,1759912251285,-1665.3,0.00021369,2]
[389967837,1759912251295,-1665.3,0.00021369,2]
[389967838,1759912251304,-174.202717,0.00021369,7]
[389967839,1759912251314,-1665.3,0.00021369,2]
[389967840,1759912251323,-174.202717,0.00021369,7]
[389967841,1759912251333,-1665.3,0.00021369,2]
[389967842,1759912251342,-174.202717,0.00021369,7]
[389967843,1759912251351,-1665.3,0.00021369,2]
[389967844,1759912251361,-1665.3,0.00021369,2]
[389967845,1759912251372,-1665.3,0.00021369,2]
[389967846,1759912251383,-1665.43370106,0.00021369,2]
[389967847,1759912251392,-500.0,0.00021369,2]
[389967848,1759912251403,-570.73,0.00021369,2]
[389967849,1759912251412,-1010.88,0.00021369,2]
[389967850,1759912251421,-3829.44,0.00021369,2]
[389967851,1759912251431,-151.0,0.00021369,7]
[389967852,1759912251440,-151.0,0.00021369,7]
[389967853,1759912251450,-151.0,0.00021369,7]
[389967854,1759912251460,-151.70670801,0.00021369,2]
[389967855,1759912251469,-151.0,0.00021369,7]
[389967856,1759912251479,-151.0,0.00021369,7]
[389967857,1759912251488,-694.21,0.00021369,2]
[389967858,1759912251522,-500.0,0.00021369,2]
[389967859,1759912251532,-9915.11,0.00021369,2]
[389967860,1759912251541,-151.0,0.00021369,7]
[389967861,1759912251550,-715.92,0.00021369,2]
[389967862,1759912251559,-151.0,0.00021369,7]
[389967863,1759912251568,-151.0,0.00021369,7]
[389967864,1759912251578,-259.307147,0.00021369,7]
[389967865,1759912251587,-2339.06,0.00021369,2]
[389967866,1759912251596,-2137.32,0.00021369,2]
[389967867,1759912251606,-500.0,0.00021369,2]
[389967868,1759912251616,-753.43,0.00021369,2]
[389967869,1759912251625,-1578.66,0.00021369,2]
[389967870,1759912251634,-151.0,0.00021369,2]
[389967871,1759912251643,-500.0,0.00021369,2]
[389967872,1759912251653,-500.0,0.00021369,2]
[389967873,1759912251662,-1341.17,0.00021369,2]
[389967874,1759912251672,-502.3000387,0.00021369,2]
[389967875,1759912251681,-500.0,0.00021369,2]
[389967876,1759912251690,-13817.46,0.00021369,2]
[389967877,1759912251699,-500.0,0.00021369,2]
[389967878,1759912251708,-500.0,0.00021369,2]
[389967879,1759912251718,-500.0,0.00021369,2]
[389967880,1759912251727,-1141.59,0.00021369,2]
[389967881,1759912251737,-500.6523863,0.00021369,2]
[389967882,1759912251746,-1081.99,0.00021369,2]
[389967883,1759912251756,-487.17678357,0.00021369,2]
[389967884,1759912251766,-151.379047,0.00021369,7]
[389967885,1759912251776,-500.0,0.00021369,2]
[389967886,1759912251790,-500.0,0.00021369,2]
[389967887,1759912251799,-500.0,0.00021369,2]
[389967888,1759912251810,-1930.67,0.00021369,2]
[389967889,1759912251820,-151.445284,0.00021369,7]
[389967890,1759912251830,-4987.04,0.00021369,2]
[389967891,1759912251839,-840.46,0.00021369,2]
[389967892,1759912251849,-2618.69,0.00021369,2]
[389967893,1759912251860,-1409.03,0.00021369,2]
[389967894,1759912251870,-874.15,0.00021369,2]
[389967895,1759912251879,-954.16,0.00021369,2]
[389967896,1759912251889,-800.92,0.00021369,2]
[389967897,1759912251899,-151.0,0.00021369,7]
[389967898,1759912251909,-151.0,0.00021369,7]
[389967899,1759912251918,-556.972277,0.00021369,7]
[389967900,1759912251927,-151.0,0.00021369,7]
[389967901,1759912251936,-556.972277,0.00021369,7]
[389967902,1759912251946,-2398.41,0.00021369,2]
[389967903,1759912251955,-556.972277,0.00021369,7]
[389967904,1759912251968,-500.0,0.00021369,2]
[389967905,1759912251983,-151.0,0.00021369,7]
[389967906,1759912252002,-151.0,0.00021369,7]
[389967907,1759912252011,-151.0,0.00021369,7]
[389967908,1759912252021,-556.972277,0.00021369,7]
[389967909,1759912252030,-500.0,0.00021369,2]
[389967910,1759912252039,-556.972277,0.00021369,7]
[389967911,1759912252048,-556.972277,0.00021369,7]
[389967912,1759912252058,-500.0,0.00021369,2]
[389967913,1759912252067,-722.45,0.00021369,2]
[389967914,1759912252076,-556.972277,0.00021369,7]
[389967915,1759912252086,-556.972277,0.00021369,7]
[389967916,1759912252096,-556.972277,0.00021369,7]
[389967917,1759912252105,-151.443601,0.00021369,7]
[389967918,1759912252115,-2084.14,0.00021369,2]
[389967919,1759912252124,-500.0,0.00021369,2]
[389967920,1759912252134,-556.972277,0.00021369,7]
[389967921,1759912252144,-556.972277,0.00021369,7]
[389967922,1759912252153,-556.972277,0.00021369,7]
[389967923,1759912252162,-11559.55,0.00021369,2]
[389967924,1759912252172,-500.0,0.00021369,2]
[389967925,1759912252181,-500.0,0.00021369,2]
[389967926,1759912252191,-500.0,0.00021369,2]
[389967927,1759912252201,-1299.66,0.00021369,2]
[389967928,1759912252210,-4624.8,0.00021369,2]
[389967929,1759912252219,-8668.28,0.00021369,2]
[389967930,1759912252229,-656.31,0.00021369,2]
[389967931,1759912252238,-151.0,0.00021369,7]
[389967932,1759912252247,-283.33291,0.00021369,7]
[389967933,1759912252256,-500.0,0.00021369,2]
[389967934,1759912252266,-313.57071859,0.00021369,2]
[389967935,1759912252275,-500.0,0.00021369,2]
[389967936,1759912252284,-501.10107604,0.00021369,2]
[389967937,1759912252294,-500.0,0.00021369,2]
[389967938,1759912252304,-270.02160035,0.00021369,2]
[389967939,1759912252313,-500.0,0.00021369,2]
[389967940,1759912252323,-151.0,0.00021369,7]
[389967941,1759912252332,-151.0,0.00021369,7]
[389967942,1759912252342,-151.0,0.00021369,7]
[389967943,1759912252352,-480.51684085,0.00021369,2]
[389967944,1759912252361,-500.0,0.00021369,2]
[389967945,1759912252371,-500.0,0.00021369,2]
[389967946,1759912252381,-1101.04,0.00021369,2]
[389967947,1759912252391,-500.0,0.00021369,2]
[389967948,1759912252401,-659.91,0.00021369,2]
[389967949,1759912252411,-7828.61,0.00021369,2]
[389967950,1759912252420,-151.0,0.00021369,7]
[389967951,1759912252429,-895.04,0.00021369,2]
[389967952,1759912252439,-151.0,0.00021369,7]
[389967953,1759912252448,-155.205038,0.00021369,7]
[389967954,1759912252457,-151.0,0.00021369,7]
[389967955,1759912252466,-3513.32,0.00021369,2]
[389967956,1759912252476,-500.0,0.00021369,2]
[389967957,1759912252485,-500.0,0.00021369,2]
[389967958,1759912252495,-151.0,0.00021369,7]
[389967959,1759912252505,-151.56807289,0.00021369,2]
[389967960,1759912252514,-476.71024608,0.00021369,2]
[389967961,1759912252523,-151.0,0.00021369,7]
[389967962,1759912252532,-151.0,0.00021369,7]
[389967963,1759912252541,-682.16,0.00021369,2]
[389967964,1759912252550,-2194.57,0.00021369,2]
[389967965,1759912252559,-151.0,0.00021369,7]
[389967966,1759912252569,-151.0,0.00021369,7]
[389967967,1759912252578,-151.0,0.00021369,7]
[389967968,1759912252588,-152.59198,0.00021369,7]
[389967969,1759912252598,-1646.66,0.00021369,2]
[389967970,1759912252607,-3883.39,0.00021369,2]
[389967971,1759912252617,-332.0,0.0002137,2]
[389967972,1759912252626,-500.0,0.00021373,2]
[389967973,1759912252636,-480.85617323,0.00021373,2]
[389967974,1759912252646,-500.0,0.00021373,2]
[389967975,1759912252656,-104.41535388,0.00021373,2]
[389967976,1759912253773,-500.0,0.00021369,2]
[389967977,1759912253791,-501.34124379,0.00021369,2]
[389967978,1759912253802,-395.58464612,0.00021373,2]
[389967979,1759912253813,-502.74675542,0.00021373,2]
[389967980,1759912253826,-509.58326565,0.00021373,2]
[389967981,1759912253836,-500.0,0.00021373,2]
[389967982,1759912253847,-160.0,0.00021373,3]
[389967983,1759912253858,-868.02232789,0.00021395,2]
[389967984,1759912253868,-787.7945731,0.000214,2]
[389967985,1759912253878,-195.0,0.00021423,2]
[389967986,1759912253888,-162.7762228,0.00021425,2]
[389967987,1759912253899,-162.7762228,0.00021425,2]
[389967988,1759912253909,-162.7762228,0.00021425,2]
[389967989,1759912253919,-160.5729052,0.00021425,2]
[389967990,1759912253928,-332.0,0.00021443,2]
[389967991,1759912253938,-332.0,0.00021506,2]
[389967992,1759912253947,-332.0,0.00021556,2]
[389967993,1759912253957,-432.0,0.00021562,2]
[389967994,1759912253967,-2867.16478679,0.00021599,2]
[389967995,1759912254273,-500.0,0.00021369,2]
[389967996,1759912254283,-3132.83521321,0.00021599,2]
[389967997,1759912254293,-151.0,0.0002163,7]
[389967998,1759912254302,-298.660817,0.0002163,7]
[389967999,1759912254312,-151.0,0.0002163,7]
[389968000,1759912254322,-151.0,0.0002163,7]
[389968001,1759912254333,-183.27415,0.0002163,7]